bitfinex/quotes_SOLUSD_20250617
["timestamp","ask_amount","ask_price","bid_price","bid_amount"]
[1750191705606,14.21661118,148.85,148.81,1.6243]
[1750191705923,4.94008714,148.84,148.81,1.6243]
[1750191706118,4.94008714,148.83,148.81,1.6243]
[1750191706307,4.94008714,148.82,148.81,1.6243]
[1750191706729,4.94008714,148.82,148.8,20.9368886]
[1750191707026,14.21661118,148.84,148.8,20.9368886]
[1750191707218,4.94855036,148.83,148.8,20.9368886]
[1750191707524,15.64892972,148.82,148.8,20.9368886]
[1750191707728,10.7,148.82,148.8,20.9368886]
[1750191708534,10.7,148.82,148.81,14.21661118]
[1750191708735,15.6464751,148.82,148.81,14.21661118]
[1750191708939,15.6464751,148.82,148.81,20.93658967]
[1750191709111,15.6464751,148.82,148.77,14.21661118]
[1750191709315,15.6464751,148.82,148.8,14.21661118]
[1750191709316,4.9464751,148.81,148.8,14.21661118]
[1750191710627,4.9464751,148.81,148.79,14.21661118]
[1750191710931,10.7,148.82,148.79,14.21661118]
[1750191711432,10.7,148.82,148.79,20.9373804]
[1750191711614,24.91661118,148.82,148.79,6.72076922]
[1750191712525,4.94193204,148.81,148.79,6.72076922]
[1750191713025,24.91661118,148.82,148.79,6.72076922]
[1750191713615,10.7,148.82,148.79,6.72076922]
[1750191713815,24.91661118,148.82,148.79,6.72076922]
[1750191714740,14.21661118,148.8,148.77,6.7215328]
[1750191714913,14.21661118,148.8,148.76,26.0]
[1750191714914,17.41961531,148.82,148.76,6.72206863]
[1750191715230,8.30685754,148.79,148.76,6.72206863]
[1750191715620,4.93640142,148.81,148.76,15.02892617]
[1750191715930,8.30685754,148.79,148.76,6.72206863]
[1750191716833,8.30685754,148.8,148.76,15.02892617]
[1750191717207,8.30685754,148.79,148.76,6.72206863]
[1750191717938,8.30685754,148.79,148.75,6.72261966]
[1750191718114,8.30685754,148.78,148.75,6.72261966]
[1750191719235,8.30685754,148.79,148.75,15.0294772]
[1750191720440,8.30685754,148.78,148.75,6.72261966]
[1750191720636,8.30685754,148.79,148.75,15.0294772]
[1750191720824,19.10685754,148.8,148.76,8.30685754]
[1750191721137,10.8,148.8,148.77,6.7217853]
[1750191721310,19.10685754,148.8,148.77,6.7217853]
[1750191722035,10.8,148.8,148.77,6.7217853]
[1750191722348,10.8,148.8,148.77,8.30685754]
[1750191723629,8.30685754,148.79,148.74,95.22314105]
[1750191723943,8.30685754,148.75,148.7,6.72494956]
[1750191724274,8.30685754,148.71,148.69,6.72540184]
[1750191724412,8.30685754,148.7,148.67,6.72606964]
[1750191724611,8.30685754,148.68,148.67,6.72606964]
[1750191724815,0.14216157,148.71,148.67,6.72606964]
[1750191725010,8.30685754,148.69,148.66,6.72660673]
[1750191725611,8.30685754,148.68,148.66,6.72660673]
[1750191726240,8.30685754,148.67,148.63,1.501]
[1750191726442,0.14216157,148.71,148.64,6.72766415]
[1750191726443,5.06038662,148.71,148.64,6.72766415]
[1750191726622,13.22508259,148.72,148.67,8.30685754]
[1750191726813,14.25884879,148.7,148.66,14.25884879]
[1750191727133,4.90743335,148.72,148.64,49.54682453]
[1750191727134,14.25884879,148.68,148.64,20.98651294]
[1750191727336,0.14216157,148.71,148.64,6.72766415]
[1750191727337,14.25884879,148.66,148.64,6.72766415]
[1750191727712,14.25884879,148.65,148.61,8.07200211]
[1750191727912,14.25884879,148.64,148.61,14.80087679]
[1750191728115,14.25884879,148.67,148.63,14.25884879]
[1750191728311,14.25884879,148.66,148.63,6.72785098]
[1750191728935,14.25884879,148.65,148.62,6.72839476]
[1750191729530,14.25884879,148.64,148.61,14.80087394]
[1750191729832,14.25884879,148.63,148.61,8.07200211]
[1750191730037,14.25884879,148.64,148.61,8.07200211]
[1750191730435,14.25884879,148.62,148.61,8.07200211]
[1750191730853,14.25884879,148.63,148.61,8.07200211]
[1750191731526,14.25884879,148.62,148.61,8.07200211]
[1750191733528,0.14216157,148.63,148.61,8.07200211]
[1750191734052,14.25884879,148.62,148.61,8.07200211]
[1750191734235,14.40101036,148.62,148.61,8.07200211]
[1750191734736,33.33498236,148.62,148.61,8.07200211]
[1750191734922,59.33498236,148.62,148.61,8.07200211]
[1750191735636,25.20101036,148.62,148.61,8.07200211]
[1750191736046,31.92957986,148.62,148.61,8.07200211]
[1750191737928,50.86355186,148.62,148.61,8.07200211]
[1750191738433,76.86355186,148.62,148.61,8.07200211]
[1750191738635,81.72193491,148.62,148.61,8.07200211]
[1750191739035,63.56343491,148.62,148.61,8.07200211]
[1750191739270,63.56091164,148.62,148.61,8.07200211]
[1750191740273,84.70505186,148.62,148.61,8.07200211]
[1750191740775,70.44620307,148.62,148.61,8.07200211]
[1750191741053,10.8,148.62,148.61,8.07200211]
[1750191741256,10.8,148.62,148.61,29.05987317]
[1750191741463,10.8,148.62,148.61,14.80102438]
[1750191741662,10.8,148.62,148.61,29.05987317]
[1750191742933,10.8,148.62,148.61,14.80102438]
[1750191743134,10.8,148.62,148.61,29.05987317]
[1750191743649,36.22496874,148.7,148.61,71.88242885]
[1750191743966,36.22496874,148.7,148.65,14.25884879]
[1750191743967,0.14216157,148.69,148.65,14.25884879]
[1750191744335,0.14216157,148.69,148.61,57.62358006]
[1750191744535,0.14216157,148.69,148.65,14.25884879]
[1750191744751,0.14216157,148.69,148.61,57.62358006]
[1750191744951,0.14216157,148.69,148.66,14.25884879]
[1750191745549,14.25884879,148.7,148.66,14.25884879]
[1750191745753,14.25884879,148.7,148.65,6.72709311]
[1750191745754,0.14216157,148.7,148.67,14.25884879]
[1750191745963,14.40101036,148.7,148.66,14.25884879]
[1750191746809,0.14216157,148.7,148.66,20.98553301]
[1750191747143,0.14216157,148.7,148.67,14.25884879]
[1750191747343,0.14216157,148.7,148.66,20.98553301]
[1750191747951,7.06,148.71,148.67,14.25884879]
[1750191748161,7.06,148.71,148.68,14.25884879]
[1750191748337,10.8,148.69,148.68,14.25884879]
[1750191749364,10.8,148.69,148.68,20.98470297]
[1750191750274,69.67884879,148.75,148.68,20.98470297]
[1750191750452,69.67884879,148.75,148.71,14.25884879]
[1750191750671,0.14216157,148.74,148.71,14.25884879]
[1750191751385,14.25884879,148.72,148.67,14.25884879]
[1750191751577,14.25884879,148.71,148.67,14.25884879]
[1750191752464,14.25884879,148.71,148.67,20.9849179]
[1750191752983,4.87144399,148.72,148.67,20.9849179]
[1750191753184,10.8,148.7,148.68,14.25884879]
[1750191754888,10.8,148.7,148.69,14.25884879]
[1750191757304,10.8,148.7,148.69,20.98425063]
[1750191761599,4.90047358,148.74,148.69,20.98425063]
[1750191761763,4.90047358,148.76,148.72,14.25884879]
[1750191761966,4.90047358,148.75,148.72,14.25884879]
[1750191762190,4.90047358,148.76,148.72,20.98253281]
[1750191762393,4.90047358,148.76,148.72,6.72368402]
[1750191762696,25.88160531,148.76,148.72,20.98253281]
[1750191762881,19.15932237,148.75,148.71,6.72432811]
[1750191763085,19.15932237,148.75,148.71,20.9831769]
[1750191763404,4.90047358,148.75,148.71,20.9831769]
[1750191763705,4.90047358,148.75,148.72,14.25884879]
[1750191763999,19.15932237,148.76,148.72,14.25884879]
[1750191764300,4.90047358,148.76,148.73,20.98244187]
[1750191765074,4.91236625,148.76,148.73,20.98244187]
[1750191766197,4.91236625,148.76,148.73,6.72359308]
[1750191766407,4.91236625,148.8,148.75,14.25884879]
[1750191766572,4.91236625,148.79,148.77,14.25884879]
[1750191766773,4.91236625,148.8,148.77,14.25884879]
[1750191766989,4.91236625,148.79,148.77,14.25884879]
[1750191767193,4.91236625,148.8,148.77,14.25884879]
[1750191767400,4.91236625,148.79,148.77,14.25884879]
[1750191767583,4.91236625,148.8,148.77,14.25884879]
[1750191767788,4.91236625,148.79,148.77,14.25884879]
[1750191768003,11.63281063,148.8,148.73,23.5325758]
[1750191768172,4.91236625,148.79,148.76,14.25884879]
[1750191768371,4.91236625,148.79,148.76,20.98105779]
[1750191769209,4.91236625,148.79,148.75,20.98139332]
[1750191770214,19.17121504,148.8,148.75,20.98139332]
[1750191771307,19.17121504,148.8,148.76,14.25884879]
[1750191771604,11.63304042,148.8,148.75,20.98139332]
[1750191771837,25.89188921,148.8,148.76,14.25884879]
[1750191772108,4.91236625,148.79,148.76,14.25884879]
[1750191773431,4.90766739,148.79,148.76,20.98101642]
[1750191773605,4.90766739,148.8,148.76,20.98101642]
[1750191773803,4.90766739,148.8,148.77,14.25884879]
[1750191774409,4.90766739,148.8,148.76,20.98101642]
[1750191774621,11.62811244,148.8,148.76,20.98101642]
[1750191774804,19.93528162,148.8,148.76,15.02933681]
[1750191775195,0.14216157,148.8,148.76,15.02933681]
[1750191775420,5.04952469,148.8,148.77,8.30716918]
[1750191775594,5.04952469,148.8,148.78,8.30716918]
[1750191776007,5.04952469,148.8,148.77,8.30716918]
[1750191776316,0.14216157,148.8,148.77,8.30716918]
[1750191776519,5.04811098,148.8,148.77,8.30716918]
[1750191776854,0.14216157,148.8,148.77,8.30716918]
[1750191777399,0.14216157,148.8,148.76,6.72216763]
[1750191777600,0.14216157,148.8,148.77,8.30716918]
[1750191778730,5.05006377,148.8,148.77,8.30716918]
[1750191779134,5.05006377,148.8,148.76,15.02933681]
[1750191780009,5.05006377,148.8,148.77,8.30716918]
[1750191780317,0.14216157,148.8,148.77,8.30716918]
[1750191780527,5.4,148.79,148.77,8.30716918]
[1750191780835,5.4,148.79,148.78,8.30716918]
[1750191781321,44.40423963,148.88,148.78,15.98376918]
[1750191781498,44.40423963,148.88,148.84,8.30716918]
[1750191781499,29.38,148.88,148.84,8.30716918]
[1750191781699,0.14216157,148.87,148.84,8.30716918]
[1750191782431,18.64964886,148.89,148.85,8.30716918]
[1750191782643,4.91736767,148.89,148.86,8.30716918]
[1750191782815,0.14216157,148.89,148.86,14.22157079]
[1750191783131,39.58714527,148.9,148.85,14.22157079]
[1750191783522,0.14216157,148.89,148.85,14.22157079]
[1750191783715,39.58714527,148.9,148.85,14.22157079]
[1750191784034,0.14216157,148.9,148.87,14.22157079]
[1750191784405,14.22157079,148.89,148.84,1.5967]
[1750191784601,14.22157079,148.89,148.85,14.22157079]
[1750191784805,14.22157079,148.89,148.85,20.93970605]
[1750191785013,4.93127065,148.88,148.85,14.22157079]
[1750191785216,4.93127065,148.87,148.85,14.22157079]
[1750191785412,14.22157079,148.89,148.85,14.22157079]
[1750191785615,4.93116148,148.88,148.85,14.22157079]
[1750191785813,4.93116148,148.87,148.85,20.93969032]
[1750191785999,6.85833289,148.9,148.85,20.93969032]
[1750191786205,4.93142867,148.89,148.86,14.22157079]
[1750191786434,4.93142867,148.88,148.86,14.22157079]
[1750191786743,4.93142867,148.89,148.86,14.22157079]
[1750191786912,4.93142867,148.88,148.86,14.22157079]
[1750191787105,4.93142867,148.89,148.86,14.22157079]
[1750191787434,4.93142867,148.88,148.85,14.22157079]
[1750191788937,20.93799454,148.89,148.85,14.22157079]
[1750191789134,4.9217175,148.88,148.85,20.93968903]
[1750191789343,11.63809709,148.89,148.85,6.71811824]
[1750191789525,4.9217175,148.88,148.86,14.22157079]
[1750191789836,11.63809709,148.89,148.86,14.22157079]
[1750191790037,4.9217175,148.89,148.88,14.22157079]
[1750191790243,4.9217175,148.9,148.88,14.22157079]
[1750191790623,4.9217175,148.9,148.85,6.71811824]
[1750191790822,4.9217175,148.9,148.89,14.22157079]
[1750191791012,4.9217175,148.92,148.89,20.93782034]
[1750191791340,4.91555275,148.94,148.91,14.22157079]
[1750191791510,4.91555275,148.93,148.91,14.22157079]
[1750191791834,5.05776675,148.94,148.91,14.22157079]
[1750191792027,24.04214945,148.95,148.91,14.22157079]
[1750191792028,4.91560518,148.93,148.91,14.22157079]
[1750191792222,4.91560518,148.94,148.91,14.22157079]
[1750191792747,4.91560518,148.94,148.89,6.71624955]
[1750191792917,4.91560518,148.94,148.91,14.22157079]
[1750191793442,4.91560518,148.94,148.91,20.93693513]
[1750191793815,14.87834541,148.95,148.91,20.93693513]
[1750191794139,9.96274023,148.95,148.91,20.93693513]
[1750191794313,0.14216157,148.95,148.91,20.93693513]
[1750191795317,26.0,148.96,148.91,6.71536434]
[1750191795644,0.14216157,148.96,148.93,14.22157079]
[1750191796158,5.04651089,148.96,148.93,14.22157079]
[1750191796321,5.04651089,148.96,148.92,14.22157079]
[1750191796521,5.04651089,148.96,148.93,14.22157079]
[1750191796718,4.90434932,148.96,148.95,14.22157079]
[1750191796948,0.14216157,148.99,148.95,14.22157079]
[1750191797143,43.56157079,149.01,148.96,6.7132116]
[1750191797345,0.14216157,149.0,148.97,14.22157079]
[1750191797748,18.64964886,149.01,148.97,14.22157079]
[1750191798053,47.98964886,149.02,148.99,14.22157079]
[1750191798260,47.98964886,149.02,148.98,14.22157079]
[1750191798566,50.58157079,149.03,148.99,14.22157079]
[1750191798941,33.01338122,149.01,148.96,1.6273]
[1750191799153,14.22157079,148.98,148.93,20.93613467]
[1750191799344,14.22157079,148.98,148.94,14.22157079]
[1750191800458,6.85414611,148.99,148.95,14.22157079]
[1750191800636,14.22157079,148.97,148.93,6.71443187]
[1750191800836,14.22157079,148.98,148.94,14.22157079]
[1750191801036,6.85414611,148.99,148.94,14.22157079]
[1750191801037,36.17414611,148.99,148.94,14.22157079]
[1750191801236,14.22157079,148.98,148.94,14.22157079]
[1750191802644,5.3,148.97,148.94,20.93567752]
[1750191803660,5.3,148.97,148.93,6.71438735]
[1750191803959,14.22157079,148.95,148.92,8.34229659]
[1750191804127,14.22157079,148.94,148.88,1.5967]
[1750191804330,14.22157079,148.94,148.9,14.22157079]
[1750191804559,14.22157079,148.94,148.9,20.93709971]
[1750191804733,14.22157079,148.95,148.91,14.22157079]
[1750191804938,8.2909132,148.95,148.91,8.2909132]
[1750191805139,8.2909132,148.94,148.9,6.71552892]
[1750191805553,15.00459246,148.95,148.9,6.71552892]
[1750191805748,15.00459246,148.95,148.89,6.71636778]
[1750191805948,6.71367926,148.95,148.89,6.71636778]
[1750191806265,8.2909132,148.94,148.89,6.71636778]
[1750191806449,15.00459246,148.95,148.89,6.71636778]
[1750191808362,6.71367926,148.95,148.89,6.71636778]
[1750191808548,8.2909132,148.95,148.89,6.71636778]
[1750191809766,13.18764357,148.95,148.89,6.71636778]
[1750191810142,19.90135782,148.95,148.89,6.71636778]
[1750191810465,15.00462745,148.95,148.89,6.71636778]
[1750191810664,8.2909132,148.95,148.89,6.71636778]
[1750191811464,8.2909132,148.96,148.92,8.2909132]
[1750191811849,13.18693825,148.96,148.93,6.71456388]
[1750191812061,4.89602505,148.96,148.93,6.71456388]
[1750191812242,8.2909132,148.96,148.93,6.71456388]
[1750191812643,13.18833499,148.96,148.93,6.71456388]
[1750191812943,8.2909132,148.96,148.93,6.71456388]
[1750191813565,0.14216157,148.95,148.9,8.2909132]
[1750191813740,8.2909132,148.94,148.9,15.0066287]
[1750191813943,8.2909132,148.93,148.89,15.00710639]
[1750191816649,13.19045642,148.94,148.9,8.2909132]
[1750191817260,8.2909132,148.94,148.89,6.71619319]
[1750191817462,4.91031935,148.93,148.9,8.2909132]
[1750191817664,4.91031935,148.92,148.9,8.2909132]
[1750191817989,4.91031935,148.93,148.9,15.00667871]
[1750191819070,13.20123255,148.93,148.89,6.71620993]
[1750191819276,13.20123255,148.93,148.89,15.00712313]
[1750191819683,4.91031935,148.92,148.89,15.00712313]
[1750191820265,4.91304523,148.93,148.9,8.2909132]
[1750191820456,4.91304523,148.92,148.9,8.2909132]
[1750191820657,4.92423993,148.91,148.9,8.2909132]
[1750191820859,4.92423993,148.91,148.89,15.00712313]
[1750191821155,8.2909132,148.93,148.89,15.00712313]
[1750191821355,4.92444186,148.92,148.89,15.00712313]
[1750191821565,4.92444186,148.91,148.9,8.2909132]
[1750191823383,4.92627557,148.91,148.9,15.00679491]
[1750191825584,6.13700904,149.02,148.93,26.0]
[1750191825774,8.2909132,149.02,148.98,8.2909132]
[1750191825986,8.2909132,149.01,148.97,8.2909132]
[1750191826786,8.2909132,149.01,148.97,15.00353027]
[1750191829430,8.43307477,149.0,148.96,8.2909132]
[1750191829685,8.43307477,149.0,148.95,6.7136623]
[1750191829874,0.14216157,149.0,148.96,8.2909132]
[1750191830073,8.43307477,149.0,148.95,6.7136623]
[1750191830269,15.14455132,149.0,148.96,8.2909132]
[1750191830672,15.14455132,149.0,148.96,15.0041087]
[1750191832063,8.2909132,148.99,148.94,1.5311]
[1750191832269,8.2909132,148.98,148.94,8.2909132]
[1750191833169,8.2909132,148.98,148.93,6.71437904]
[1750191833375,8.2909132,148.98,148.94,8.2909132]
[1750191834820,15.00343231,148.98,148.94,8.2909132]
[1750191834989,8.2909132,148.95,148.89,7.02]
[1750191835302,19.07613357,148.97,148.9,6.71566164]
[1750191835490,8.2909132,148.93,148.9,6.71566164]
[1750191835695,8.2909132,148.93,148.88,6.71681891]
[1750191835880,8.2909132,148.93,148.89,8.2909132]
[1750191836995,8.2909132,148.93,148.9,6.71591672]
[1750191837815,4.94969452,148.92,148.9,6.71591672]
[1750191838120,4.94969452,148.91,148.9,6.71591672]
[1750191838907,4.94969452,148.91,148.89,8.2909132]
[1750191839205,4.94969452,148.9,148.87,8.29571545]
[1750191839407,4.94969452,148.89,148.87,8.29571545]
[1750191839583,8.2909132,148.91,148.87,8.29571545]
[1750191839907,4.94843401,148.9,148.86,41.00848633]
[1750191840086,4.94843401,148.89,148.86,41.00848633]
[1750191840287,4.94843401,148.88,148.86,32.71757313]
[1750191840498,8.2909132,148.91,148.86,41.00848633]
[1750191840681,13.23772562,148.9,148.86,41.00848633]
[1750191840897,4.94681242,148.89,148.86,41.00848633]
[1750191841103,4.94681242,148.88,148.86,41.00848633]
[1750191841400,8.2909132,148.9,148.86,41.00848633]
[1750191841589,4.94548709,148.89,148.86,41.00848633]
[1750191841793,4.94548709,148.88,148.87,15.0081833]
[1750191841991,8.2909132,148.91,148.87,15.0081833]
[1750191842195,4.94392983,148.9,148.87,15.0081833]
[1750191842402,4.94392983,148.89,148.87,15.0081833]
[1750191842595,8.2909132,148.91,148.87,15.0081833]
[1750191842911,4.94093872,148.9,148.87,15.0081833]
[1750191843116,4.94093872,148.89,148.87,15.0081833]
[1750191843300,8.2909132,148.91,148.87,15.0081833]
[1750191843506,4.94027382,148.9,148.87,15.0081833]
[1750191843705,4.94027382,148.89,148.87,15.0081833]
[1750191843906,8.2909132,148.91,148.87,15.0081833]
[1750191844107,13.23077675,148.9,148.87,6.7172701]
[1750191844304,4.93986355,148.89,148.87,6.7172701]
[1750191844622,0.14216157,148.87,148.83,6.71893725]
[1750191844796,0.14216157,148.89,148.86,8.2909132]
[1750191844991,4.93495541,148.88,148.86,8.2909132]
[1750191845302,4.93495541,148.87,148.85,8.2909132]
[1750191845498,4.932792,148.86,148.85,8.2909132]
[1750191845819,4.932792,148.88,148.85,8.2909132]
[1750191845987,4.932792,148.87,148.85,8.2909132]
[1750191846190,15.14955146,148.89,148.84,6.71831257]
[1750191846191,4.93217186,148.86,148.84,15.00922577]
[1750191846408,8.2909132,148.88,148.84,15.00922577]
[1750191846605,4.93201433,148.87,148.84,15.00922577]
[1750191846802,4.93201433,148.86,148.84,15.00922577]
[1750191847011,8.2909132,148.88,148.84,15.00922577]
[1750191847216,4.93166704,148.87,148.84,15.00922577]
[1750191847417,4.93166704,148.86,148.84,15.00922577]
[1750191847598,4.93166704,148.85,148.84,15.00922577]
[1750191847921,4.93166704,148.87,148.84,15.00922577]
[1750191848212,4.93166704,148.86,148.84,15.00922577]
[1750191848520,8.2909132,148.88,148.84,15.00922577]
[1750191849032,15.00774295,148.88,148.83,6.71876201]
[1750191849186,8.43307477,148.89,148.85,8.2909132]
[1750191849386,15.14950451,148.89,148.83,6.71907545]
[1750191849616,15.14950451,148.89,148.85,8.2909132]
[1750191849994,8.43307477,148.89,148.85,8.2909132]
[1750191850303,0.14216157,148.89,148.86,8.2909132]
[1750191850697,4.92727387,148.88,148.86,8.2909132]
[1750191850892,4.92727387,148.87,148.86,8.2909132]
[1750191851206,4.92727387,148.87,148.85,8.2909132]
[1750191851404,4.92727387,148.88,148.85,15.00903651]
[1750191851592,4.92727387,148.87,148.85,15.00903651]
[1750191851792,4.92853854,148.88,148.85,15.00903651]
[1750191852089,4.92853854,148.87,148.85,15.00903651]
[1750191852286,4.92853854,148.88,148.85,15.00903651]
[1750191852515,4.92853854,148.87,148.85,15.00903651]
[1750191852719,4.92853854,148.88,148.85,15.00903651]
[1750191852890,4.92853854,148.87,148.85,15.00903651]
[1750191853096,4.92853854,148.88,148.85,15.00903651]
[1750191853298,4.92853854,148.87,148.85,15.00903651]
[1750191853505,4.92853854,148.88,148.85,15.00903651]
[1750191853704,4.9271068,148.87,148.85,15.00903651]
[1750191853905,4.9271068,148.88,148.85,15.00903651]
[1750191854120,4.9271068,148.87,148.85,15.00903651]
[1750191854316,4.9271068,148.88,148.85,15.00903651]
[1750191854506,4.9271068,148.87,148.85,15.00903651]
[1750191854707,4.9271068,148.88,148.85,15.00903651]
[1750191854906,4.9271068,148.87,148.85,15.00903651]
[1750191855107,4.9271068,148.88,148.85,15.00903651]
[1750191855307,4.9271068,148.87,148.85,15.00903651]
[1750191855495,4.9271068,148.88,148.85,15.00903651]
[1750191855693,4.9271068,148.87,148.85,15.00903651]
[1750191855902,4.9271068,148.88,148.85,15.00903651]
[1750191857016,4.9271068,148.88,148.87,8.2909132]
[1750191857214,4.9271068,148.91,148.87,8.2909132]
[1750191857520,0.14216157,148.93,148.85,29.90585495]
[1750191857698,5.06650205,148.93,148.92,8.2909132]
[1750191857901,5.06650205,148.93,148.91,8.2909132]
[1750191858099,4.92434048,148.93,148.91,8.2909132]
[1750191858326,4.92434048,148.94,148.85,118.40585495]
[1750191858522,4.92434048,148.93,148.91,8.2909132]
[1750191858831,4.92434048,148.94,148.91,8.2909132]
[1750191859038,4.92434048,148.93,148.91,8.2909132]
[1750191859223,13.35741525,148.92,148.85,111.68773164]
[1750191859544,4.92434048,148.91,148.88,8.2909132]
[1750191859709,8.43307477,148.92,148.88,8.2909132]
[1750191859710,4.92434048,148.9,148.88,8.2909132]
[1750191859898,4.92434048,148.91,148.88,8.2909132]
[1750191860100,4.92434048,148.9,148.88,8.2909132]
[1750191860310,4.92393337,148.91,148.88,8.2909132]
[1750191860527,4.92393337,148.9,148.87,8.2909132]
[1750191860829,4.92393337,148.9,148.88,8.2909132]
[1750191861005,4.92393337,148.91,148.88,8.2909132]
[1750191861323,4.92393337,148.9,148.88,8.2909132]
[1750191861527,4.92393337,148.91,148.88,8.2909132]
[1750191863201,4.92292868,148.91,148.88,15.00768675]
[1750191863516,4.92292868,148.9,148.89,8.2909132]
[1750191863826,4.92292868,148.91,148.89,8.2909132]
[1750191864014,4.92292868,148.9,148.89,8.2909132]
[1750191864211,4.92292868,148.92,148.89,8.2909132]
[1750191864411,4.92292868,148.93,148.91,8.2909132]
[1750191865124,4.92292868,148.92,148.91,8.2909132]
[1750191865332,4.92292868,148.93,148.91,8.2909132]
[1750191865520,4.92292868,148.92,148.91,8.2909132]
[1750191865714,4.92292868,148.93,148.91,8.2909132]
[1750191865921,4.92292868,148.92,148.91,8.2909132]
[1750191866232,4.93307944,148.93,148.9,8.2909132]
[1750191866532,4.93307944,148.92,148.9,8.2909132]
[1750191866709,4.93307944,148.93,148.9,8.2909132]
[1750191866907,4.9335416,148.92,148.9,8.2909132]
[1750191867324,4.9335416,148.93,148.91,8.2909132]
[1750191867526,4.9335416,148.92,148.9,8.2909132]
[1750191867729,4.9335416,148.93,148.9,8.2909132]
[1750191868836,5.07722195,148.93,148.9,8.2909132]
[1750191869220,4.93506038,148.92,148.89,8.2909132]
[1750191869435,5.07722195,148.91,148.88,8.2909132]
[1750191869737,4.93506038,148.91,148.9,8.2909132]
[1750191869913,4.93506038,148.92,148.9,8.2909132]
[1750191870114,4.93506038,148.92,148.91,8.2909132]
[1750191870315,5.07722195,148.93,148.91,8.2909132]
[1750191871129,5.07722195,148.93,148.91,15.00634841]
[1750191871339,5.07722195,148.93,148.91,8.2909132]
[1750191871721,5.07978324,148.93,148.91,8.2909132]
[1750191872322,4.93762167,148.93,148.91,15.00632323]
[1750191872520,4.93762167,148.94,148.91,15.00632323]
[1750191872720,4.93762167,148.93,148.91,15.00632323]
[1750191872922,4.93762167,148.94,148.91,6.71541003]
[1750191873119,4.93762167,148.93,148.91,15.00632323]
[1750191873334,4.93762167,148.94,148.91,15.00632323]
[1750191873534,4.93762167,148.93,148.91,15.00632323]
[1750191873848,4.93762167,148.94,148.91,15.00632323]
[1750191874032,4.93762167,148.93,148.91,15.00632323]
[1750191874238,4.93762167,148.94,148.91,15.00632323]
[1750191874452,4.93762167,148.93,148.91,15.00632323]
[1750191874636,4.93762167,148.92,148.91,15.00632323]
[1750191875024,4.93762167,148.92,148.91,8.2909132]
[1750191876452,4.93762167,148.94,148.91,8.2909132]
[1750191876629,4.93762167,148.93,148.91,8.2909132]
[1750191876832,4.93762167,148.92,148.91,8.2909132]
[1750191877941,4.93762167,148.92,148.91,15.00637891]
[1750191879454,4.93762167,148.92,148.91,8.2909132]
[1750191879845,4.93762167,148.92,148.91,15.00637891]
[1750191880250,4.95858393,148.92,148.91,15.00637891]
[1750191881254,4.96053947,148.96,148.91,31.7950432]
[1750191881433,4.96053947,148.95,148.91,23.50413]
[1750191881637,4.96053947,148.94,148.91,23.50413]
[1750191881837,7.0,148.97,148.91,23.50413]
[1750191882141,15.00256263,149.0,148.91,23.50413]
[1750191882142,4.9624955,148.96,148.91,23.50413]
[1750191882344,4.9624955,148.95,148.91,23.50413]
[1750191882530,35.85164943,149.0,148.91,23.50413]
[1750191882853,4.96285005,148.99,148.95,6.71339199]
[1750191883055,15.00256263,149.0,148.95,6.71339199]
[1750191883056,4.96287956,148.98,148.96,8.2909132]
[1750191883227,4.96287956,148.97,148.96,8.2909132]
[1750191884642,4.96287956,148.97,148.96,15.0041248]
[1750191886835,4.96287956,148.99,148.96,15.0041248]
[1750191887045,4.96287956,148.98,148.96,6.7132116]
[1750191887243,0.14216157,149.02,148.96,6.7132116]
[1750191887449,0.14216157,149.02,148.96,8.2498116]
[1750191887450,4.95185705,149.01,148.96,8.2498116]
[1750191887735,4.95185705,149.0,148.96,8.2498116]
[1750191887938,4.95185705,148.99,148.96,8.2498116]
[1750191888151,0.14216157,149.02,148.96,8.2498116]
[1750191888152,4.95185705,149.01,148.98,8.2909132]
[1750191888459,4.95185705,149.0,148.99,8.2909132]
[1750191888659,4.94654343,149.0,148.99,8.2909132]
[1750191889567,4.94654343,149.01,148.99,15.00277305]
[1750191889743,26.0,149.04,149.0,8.2909132]
[1750191889934,4.95090247,149.03,149.01,8.2909132]
[1750191890266,26.0,149.04,149.01,8.2909132]
[1750191890267,4.95090247,149.02,149.01,8.2909132]
[1750191890769,26.0,149.04,149.01,8.2909132]
[1750191890770,4.95090247,149.03,149.01,8.2909132]
[1750191891333,26.0,149.04,149.01,8.2909132]
[1750191891570,4.94450831,149.03,149.02,8.2909132]
[1750191892258,4.94450831,149.04,149.02,8.2909132]
[1750191892430,4.94450831,149.04,149.03,8.2909132]
[1750191893460,4.94450831,149.04,149.01,8.2909132]
[1750191893461,11.65417499,149.04,149.01,8.2909132]
[1750191894352,11.65248537,149.04,149.01,8.2909132]
[1750191895456,11.65248537,149.04,149.02,8.2909132]
[1750191895650,11.65275705,149.04,149.02,8.2909132]
[1750191896543,4.94309037,149.04,149.02,8.2909132]
[1750191896740,22.13820109,149.05,149.02,8.2909132]
[1750191897262,4.94012523,149.04,149.02,8.2909132]
[1750191897464,22.13523595,149.05,149.02,8.2909132]
[1750191897760,15.42589779,149.05,149.04,8.2909132]
[1750191897936,25.48591747,149.05,149.01,8.2909132]